[Event "45th FIDE Olympiad 2024"]
[Site "Budapest"]
[Date "2024.09.14"]
[Round "4.51"]
[White "Preotu, Razvan"]
[Black "Papaioannou, Ioannis"]
[Result "1/2-1/2"]
[ECO "A07"]
[WhiteElo "2451"]
[BlackElo "2615"]
[Annotator "TA"]
[PlyCount "89"]
[EventDate "2024.09.05"]
[EventType "team-tourn"]
[EventCountry "HUN"]
[SourceTitle "playchess.com"]
[Source "ChessBase"]
[SourceQuality "1"]
[WhiteTeam "Canada"]
[BlackTeam "Greece"]
[WhiteTeamCountry "CAN"]
[BlackTeamCountry "GRE"]
[TimeControl "40/5400+30:1800+30"]

{[%evp 18,89,25,13,7,-13,0,-31,108,102,97,103,107,95,102,91,116,20,35,21,18,30,87,58,97,102,134,74,142,133,200,201,199,179,185,179,189,189,213,151,149,149,117,0,0,0,0,0,0,0,0,-75,-79,-104,0,0,0,0,0,0,0,0,0,0,0,0,0,0,0,0,0,0,0,0]} 1. Nf3 {[%emt 0:00:06]} d5 {[%emt 0:00:16]} 2. g3 {[%emt 0:00:10]} c6 {[%emt 0:00:49]} 3. Bg2 {[%emt 0:00:15]} Bg4 {[%emt 0:00:17]} 4. O-O {[%emt 0:00:15]} Nd7 {[%emt 0:00:34]} 5. h3 {[%emt 0:00:29]} Bh5 {[%emt 0:00:17]} 6. d4 {[%emt 0:00:53] A07: Réti Opening: New York and Capablanca Systems.} e6 {[%emt 0:01:10]} 7. c4 {[%emt 0:00:21]} Bd6 {[%emt 0:01:15]} 8. Qb3 {[%emt 0:07:18]} Rb8 {[%emt 0:01:17]} 9. Nc3 {[%emt 0:01:02]} Ngf6 {[%emt 0:00:58]} 10. cxd5 {[%emt 0:06:08]} exd5 {[%emt 0:00:36]} 11. Nh4 {[%emt 0:00:08]} O-O {[%emt 0:03:08]} 12. f4 {[%emt 0:02:20] [#]} Ne4 $146 {[%emt 0:17:01]} (12... Bg6 $1 $15 {stays ahead.}) ({Predecessor:} 12... Bg6 13. Nxg6 hxg6 14. a4 Re8 15. f5 Nf8 {1-0 Acosta,P (2391)-Toniutti,E (2204) Buenos Aires Guimard Memorial 4th 2016 (7)}) 13. Nxe4 $16 {[%emt 0:07:33]} dxe4 {[%emt 0:00:06]} 14. Nf5 {[%emt 0:00:12]} Bc7 {[%emt 0:02:06]} 15. g4 {[%emt 0:00:15]} (15. Bxe4 $6 Bxe2 16. Re1 Ba6 $11) 15... Bg6 {[%emt 0:00:22]} 16. Ng3 $1 {[%emt 0:00:57]} Qh4 {[%emt 0:03:36]} 17. Nxe4 {[%emt 0:01:15]} ({White should play} 17. Bd2 $16) 17... Bxe4 $11 {[%emt 0:02:54]} 18. Bxe4 {[%emt 0:00:06]} Rfe8 {[%emt 0:01:50]} 19. Qf3 {[%emt 0:00:45]} Bb6 {[%emt 0:01:54]} (19... Qe7 $11 20. Bd3 c5) 20. e3 $16 {[%emt 0:06:16]} c5 {[%emt 0:02:10]} 21. d5 $1 {[%emt 0:03:46]} (21. Bxb7 $2 cxd4 22. Ba6 dxe3 $19) 21... c4 {[%emt 0:03:52]} 22. Bc2 {[%emt 0:01:58]} (22. Kg2 $142) 22... Nc5 {[%emt 0:14:34]} (22... c3 $142 23. b3 (23. bxc3 Rbc8 $11) 23... Qe7) 23. Kg2 {[%emt 0:20:58]} Nd3 {[%emt 0:13:25]} (23... Qe7 $16) 24. Bxd3 $18 {[%emt 0:01:46]} cxd3 {[%emt 0:00:06]} 25. Bd2 {[%emt 0:00:14]} Rbc8 {[%emt 0:07:09]} 26. Rac1 {[%emt 0:00:18]} Rxc1 {[%emt 0:03:09]} 27. Rxc1 {[%emt 0:02:50]} ({Worse is} 27. Bxc1 Ba5 28. Qd1 Rc8 29. Qxd3 Be1 $17) 27... Qf6 {[%emt 0:01:45]} 28. Bc3 {[%emt 0:04:17]} Qg6 {[%emt 0:02:06]} 29. Re1 {[%emt 0:01:27]} f5 {[%emt 0:01:39]} 30. Qg3 {[%emt 0:06:41]} (30. Be5 $16) 30... Qf7 $11 {[%emt 0:02:04]} 31. Kh2 {[%emt 0:03:37]} fxg4 {[%emt 0:01:52]} 32. e4 {[%emt 0:01:09]} Bc7 {[%emt 0:00:26]} 33. Bd2 {[%emt 0:01:05]} gxh3 {[%emt 0:01:52]} 34. Kxh3 {[%emt 0:02:05] [#]} (34. a3 $11 {keeps the balance.}) 34... Rf8 $1 $17 {[%emt 0:00:26]} 35. Kg4 {[%emt 0:06:36] [#]} Qf6 {[%emt 0:04:20]} ({Black should try} 35... h6 $1 $17 {[%cal Og7g5] And now ...g5! would win.} 36. Rf1 Qd7+ 37. Kf3 g5) 36. Rf1 $1 $11 {[%emt 0:02:30]} Re8 {[%emt 0:01:06]} 37. Qxd3 {[%emt 0:02:29]} Qg6+ {[%emt 0:00:05]} 38. Kf3 {[%emt 0:00:03]} h5 {[%emt 0:00:57]} 39. d6 {[%emt 0:04:25]} Bb6 {[%emt 0:00:46]} 40. Qd5+ {[%emt 0:00:07]} Re6 $1 {[%emt 0:01:25]} 41. e5 {[%emt 0:10:41]} (41. Qxb7 $2 Qg4#) 41... Qg4+ {[%emt 0:01:04]} 42. Ke4 {[%emt 0:00:04]} Qe2+ {[%emt 0:02:06]} 43. Kf5 {[%emt 0:00:04]} Qg4+ {[%emt 0:00:11]} 44. Ke4 {[%emt 0:00:03]} Qe2+ {[%emt 0:00:09]} 45. Kf5 {[%emt 0:00:05]} 1/2-1/2

[Event "45th FIDE Olympiad 2024"]
[Site "Budapest"]
[Date "2024.09.14"]
[Round "4.51"]
[White "Asefi, Zaheeruddeen"]
[Black "Jones, Rupert"]
[Result "1/2-1/2"]
[ECO "E11"]
[WhiteElo "1947"]
[BlackElo "1849"]
[PlyCount "84"]
[EventDate "2024.09.05"]
[EventType "team-tourn"]
[EventCountry "HUN"]
[BlackTeam "Papua New Guinea"]
[BlackTeamCountry "PNG"]
[TimeControl "40/5400+30:1800+30"]

1. d4 Nf6 2. c4 e6 3. Nf3 Bb4+ 4. Nbd2 O-O 5. a3 Be7 6. e4 c5 7. d5 d6 8. Be2 e5 9. O-O Ne8 10. Ne1 f5 11. f4 exf4 12. Rxf4 Bg5 13. Rf1 Qe7 14. exf5 Rxf5 15. Ndf3 Be3+ 16. Kh1 Rf8 17. Bd3 Bxc1 18. Qxc1 Bf5 19. Ng5 Bxd3 20. Rxf8+ Qxf8 21. Nxd3 Qf5 22. Qe3 Nf6 23. Kg1 Na6 24. Rf1 Qd7 25. Ne6 Nc7 26. Ndf4 Re8 27. h3 b5 28. b3 a6 29. Re1 Kh8 30. g4 h6 31. Qd3 Kg8 32. Kg2 Qf7 33. Qf5 Nxe6 34. dxe6 Qb7+ 35. Nd5 bxc4 36. bxc4 Qb2+ 37. Kf1 Qd4 38. Nxf6+ Qxf6 39. Kg2 Qb2+ 40. Kh1 Qf6 41. Qd5 Qe7 42. Kg2 Kh8 1/2-1/2

[Event "45th FIDE Olympiad 2024"]
[Site "Budapest"]
[Date "2024.09.14"]
[Round "4.52"]
[White "Kelires, Andreas"]
[Black "Noritsyn, Nikolay"]
[Result "0-1"]
[ECO "A05"]
[WhiteElo "2536"]
[BlackElo "2451"]
[Annotator "ChessBase"]
[PlyCount "104"]
[EventDate "2024.09.05"]
[EventType "team-tourn"]
[EventCountry "HUN"]
[SourceTitle "playchess.com"]
[Source "ChessBase"]
[SourceQuality "1"]
[WhiteTeam "Greece"]
[BlackTeam "Canada"]
[WhiteTeamCountry "GRE"]
[BlackTeamCountry "CAN"]
[TimeControl "40/5400+30:1800+30"]

1. Nf3 {[%emt 0:00:03]} d5 {[%emt 0:00:17]} 2. g3 {[%emt 0:00:17]} b6 {[%emt 0:00:28]} 3. Bg2 {[%emt 0:00:59]} Bb7 {[%emt 0:00:09]} 4. O-O {[%emt 0:01:17]} Nf6 {[%emt 0:00:27]} 5. d3 {[%emt 0:02:29]} e6 {[%emt 0:00:17]} 6. Re1 {[%emt 0:07:15]} Bc5 {[%emt 0:11:48]} 7. d4 {[%emt 0:09:22]} Be7 {[%emt 0:00:38]} 8. c4 {[%emt 0:01:14]} c6 {[%emt 0:10:35]} 9. Nc3 {[%emt 0:07:35]} Nbd7 {[%emt 0:01:54]} 10. Bf4 {[%emt 0:07:18]} Nh5 {[%emt 0:09:34]} 11. Bd2 {[%emt 0:05:58]} Nhf6 {[%emt 0:00:29]} 12. Qb3 {[%emt 0:04:20]} O-O {[%emt 0:03:31]} 13. cxd5 {[%emt 0:00:30]} cxd5 {[%emt 0:00:16]} 14. Rec1 {[%emt 0:00:52]} a6 {[%emt 0:04:02]} 15. a4 {[%emt 0:05:06]} Ne4 {[%emt 0:04:04]} 16. Be1 {[%emt 0:01:34]} Nd6 {[%emt 0:11:44]} 17. e3 {[%emt 0:04:24]} Rc8 {[%emt 0:01:39]} 18. Bf1 {[%emt 0:05:25]} Rc7 {[%emt 0:09:46]} 19. Na2 {[%emt 0:03:08]} Nc4 {[%emt 0:00:20]} 20. Nd2 {[%emt 0:13:22]} Nf6 {[%emt 0:12:00]} 21. Rab1 {[%emt 0:03:08]} Qd7 {[%emt 0:02:01]} 22. Qd1 {[%emt 0:00:57]} Rfc8 {[%emt 0:00:50]} 23. Nf3 {[%emt 0:02:11]} Ne4 {[%emt 0:03:40]} 24. b3 {[%emt 0:00:44]} Na5 {[%emt 0:00:28]} 25. Ne5 {[%emt 0:01:39]} Qd8 {[%emt 0:00:20]} 26. Rxc7 {[%emt 0:01:42]} Rxc7 {[%emt 0:00:04]} 27. Rc1 {[%emt 0:01:52]} Bd6 {[%emt 0:04:57]} 28. Rxc7 {[%emt 0:01:48]} Qxc7 {[%emt 0:00:06]} 29. Nf3 {[%emt 0:01:50]} h5 {[%emt 0:01:28]} 30. Bd3 {[%emt 0:00:51]} g6 {[%emt 0:00:38]} 31. Qb1 {[%emt 0:01:20]} Be7 {[%emt 0:01:58]} 32. Ne5 {[%emt 0:01:25]} Bd6 {[%emt 0:00:52]} 33. b4 {[%emt 0:01:38]} Nc6 {[%emt 0:00:36]} 34. Nf3 {[%emt 0:00:40]} Ne7 {[%emt 0:01:18]} 35. Nd2 {[%emt 0:00:44]} Nxd2 {[%emt 0:00:58]} 36. Bxd2 {[%emt 0:00:02]} h4 {[%emt 0:00:17]} 37. Be1 {[%emt 0:02:07]} e5 {[%emt 0:00:55]} 38. Nc3 {[%emt 0:01:18]} Qd7 {[%emt 0:01:22]} 39. Qb3 {[%emt 0:00:33]} exd4 {[%emt 0:00:25]} 40. exd4 {[%emt 0:00:07]} Qg4 {[%emt 0:00:59]} 41. b5 {[%emt 0:13:19]} a5 {[%emt 0:00:37]} 42. Bf1 {[%emt 0:02:29]} Qxd4 {[%emt 0:02:06]} 43. Bg2 {[%emt 0:02:09]} Bb4 {[%emt 0:03:09]} 44. Qc2 {[%emt 0:02:38]} Qc4 {[%emt 0:03:01]} 45. Bd2 {[%emt 0:01:23]} Nf5 {[%emt 0:02:28]} 46. Qc1 {[%emt 0:01:15]} Nd4 {[%emt 0:02:25]} 47. Qe1 {[%emt 0:01:03]} Ne6 {[%emt 0:11:26]} 48. Qe5 {[%emt 0:00:55]} Qd4 {[%emt 0:02:32]} 49. Qe1 {[%emt 0:06:29]} Qd3 {[%emt 0:01:18]} 50. Bf1 {[%emt 0:01:09]} Qf5 {[%emt 0:00:53]} 51. Ne2 {[%emt 0:02:09]} d4 {[%emt 0:01:18]} 52. Bxb4 {[%emt 0:01:01]} axb4 {[%emt 0:00:27]} 0-1

[Event "45th FIDE Olympiad 2024"]
[Site "Budapest"]
[Date "2024.09.14"]
[Round "4.53"]
[White "Giri, Anish"]
[Black "Romanov, Evgeny"]
[Result "1-0"]
[ECO "B67"]
[WhiteElo "2724"]
[BlackElo "2567"]
[Annotator "TA"]
[PlyCount "59"]
[EventDate "2024.09.05"]
[EventType "team-tourn"]
[EventCountry "HUN"]
[SourceTitle "playchess.com"]
[Source "ChessBase"]
[SourceQuality "1"]
[WhiteTeam "Netherlands"]
[BlackTeam "North Macedonia"]
[WhiteTeamCountry "NED"]
[TimeControl "40/5400+30:1800+30"]

{[%evp 18,59,38,26,39,18,12,15,28,28,26,38,33,35,43,44,80,62,306,312,412,422,487,524,529,531,515,448,528,512,946,962,1036,752,1040,797,1183,1183,1550,1444,29986,29987,29986,29987]} 1. e4 {[%emt 0:00:04]} c5 {[%emt 0:00:27]} 2. Nf3 {[%emt 0:00:05]} Nc6 {[%emt 0:00:10]} 3. d4 {[%emt 0:00:12]} cxd4 {[%emt 0:00:11]} 4. Nxd4 {[%emt 0:00:02]} Nf6 {[%emt 0:00:35]} 5. Nc3 {[%emt 0:00:03]} d6 {[%emt 0:00:18]} 6. Bg5 {[%emt 0:00:20]} e6 {[%emt 0:00:16]} 7. Qd2 {[%emt 0:00:04]} a6 {[%emt 0:00:22]} 8. O-O-O {[%emt 0:00:11]} Bd7 {[%emt 0:00:31]} 9. f3 {[%emt 0:03:32]} Rc8 {[%emt 0:06:58]} 10. Kb1 {[%emt 0:04:29]} Be7 {[%emt 0:02:22]} 11. Nxc6 {[%emt 0:02:30]} Bxc6 {[%emt 0:04:07]} 12. h4 {[%emt 0:00:44]} h6 {[%emt 0:12:14] The position is equal.} 13. Be3 {[%emt 0:00:21]} d5 {[%emt 0:10:39]} 14. e5 {[%emt 0:03:36]} Nd7 {[%emt 0:00:11][%csl LRe5,LRh4]} 15. f4 {[%emt 0:00:15][%cal Bf3f4,Bf4f5][%mdl 32]} Qa5 {[%emt 0:05:31]} 16. Bd4 {[%emt 0:06:16]} b5 {[%emt 0:09:40]} 17. f5 {[%emt 0:03:24] And now fxe6 would win.} Nb6 $2 {[%emt 0:06:10] This costs Black the game.} ({Black should try} 17... Nc5 $14) 18. Qf2 $18 {[%emt 0:15:08]} Rb8 {[%emt 0:00:43]} 19. Qg3 {[%emt 0:05:18]} Rg8 {[%emt 0:18:48]} 20. fxe6 {[%emt 0:04:49]} fxe6 {[%emt 0:00:47]} 21. Qg6+ {[%emt 0:02:19]} Kd7 {[%emt 0:00:10]} 22. g3 {[%emt 0:04:23]} Rge8 {[%emt 0:03:27]} 23. Bh3 {[%emt 0:00:43]} Ba3 {[%emt 0:00:19]} (23... Kc7 $142 24. Bxe6 (24. Qxg7 Nc4 $18) 24... b4) 24. bxa3 {[%emt 0:04:10]} Nc4 {[%emt 0:01:20]} 25. Ka1 {[%emt 0:02:09] [#] Rhf1 would now be deadly.} Nxa3 {[%emt 0:06:10]} 26. Nb1 {[%emt 0:01:29]} b4 {[%emt 0:03:30][%cal Bb5b4,Bb4a3][%mdl 32]} 27. Nxa3 {[%emt 0:05:01]} bxa3 {[%emt 0:00:08]} 28. Rhf1 {[%emt 0:03:16]} Rb4 {[%emt 0:00:18] [#]} 29. Bxe6+ $1 {[%emt 0:01:13][%mdl 512]} Kd8 {[%emt 0:01:22]} (29... Kc7 30. Rf7+) 30. Bh3 {[%emt 0:00:41] Weighted Error Value: White=0.13 (very precise) /Black=0.92.  Loses game:     	---       	Black=1      Mistake:       	---       	Black=1      Inaccurate:     	---       	Black=2      OK:         	White=11    	Black=1      Best:        	---       	Black=1} 1-0

[Event "45th FIDE Olympiad 2024"]
[Site "Budapest"]
[Date "2024.09.14"]
[Round "4.53"]
[White "Kudakwashe Chinake"]
[Black "Paiva, Donaldo"]
[Result "0-1"]
[ECO "D00"]
[WhiteElo "1859"]
[BlackElo "2139"]
[PlyCount "66"]
[EventDate "2024.09.05"]
[EventType "team-tourn"]
[EventCountry "HUN"]
[WhiteTeam "Cayman Islands"]
[BlackTeam "Mozambique"]
[WhiteTeamCountry "CAY"]
[BlackTeamCountry "MOZ"]
[TimeControl "40/5400+30:1800+30"]

1. d4 Nf6 2. Nc3 d5 3. Bf4 a6 4. e3 e6 5. Nf3 Bb4 6. Bd3 c5 7. dxc5 Bxc5 8. O-O Nc6 9. h3 Qe7 10. Ne5 O-O 11. e4 d4 12. Na4 Nxe5 13. Bxe5 Ba7 14. b3 Nd7 15. Bg3 b5 16. Nb2 Qa3 17. Qc1 Bb7 18. f4 Nc5 19. e5 Rac8 20. Bf2 Rc7 21. Qb1 Rfc8 22. Nd1 Nxd3 23. cxd3 Rc2 24. Re1 Rd2 25. Kf1 Rcc2 26. h4 h5 27. f5 exf5 28. e6 fxe6 29. Rxe6 Qc5 30. Rg6 Qe5 31. Kg1 Bb8 32. Rg3 Rxf2 33. Nxf2 Qxg3 {0-} 0-1

[Event "45th FIDE Olympiad 2024"]
[Site "Budapest"]
[Date "2024.09.14"]
[Round "4.54"]
[White "Lazov, Toni"]
[Black "Van Foreest, Jorden"]
[Result "1/2-1/2"]
[ECO "B30"]
[WhiteElo "2360"]
[BlackElo "2696"]
[Annotator "TA"]
[PlyCount "65"]
[EventDate "2024.09.05"]
[EventType "team-tourn"]
[EventCountry "HUN"]
[SourceTitle "playchess.com"]
[Source "ChessBase"]
[SourceQuality "1"]
[WhiteTeam "North Macedonia"]
[BlackTeam "Netherlands"]
[BlackTeamCountry "NED"]
[TimeControl "40/5400+30:1800+30"]

{[%evp 18,65,0,0,9,14,14,0,0,-50,-31,-50,0,0,0,0,0,0,0,0,0,0,0,0,0,0,0,0,0,0,0,0,0,0,15,0,0,0,0,0,0,0,0,0,0,0,16,17,29,0]} 1. e4 {[%emt 0:00:03]} c5 {[%emt 0:00:13]} 2. Nf3 {[%emt 0:00:10]} Nc6 {[%emt 0:00:14]} 3. Bb5 {[%emt 0:00:50]} e6 {[%emt 0:00:23]} 4. Bxc6 {[%emt 0:01:10]} bxc6 {[%emt 0:00:08]} 5. b3 {[%emt 0:00:10]} Ne7 {[%emt 0:02:57]} 6. O-O {[%emt 0:08:44]} Ng6 {[%emt 0:02:13]} 7. Bb2 {[%emt 0:07:30]} f6 {[%emt 0:01:31]} 8. e5 {[%emt 0:12:44]} Be7 {[%emt 0:03:09]} 9. Na3 {[%emt 0:12:41]} O-O {[%emt 0:01:53]} 10. Nc4 {[%emt 0:00:29]} fxe5 {[%emt 0:00:43]} 11. Nfxe5 {[%emt 0:01:46]} Nxe5 {[%emt 0:00:09]} 12. Nxe5 {[%emt 0:00:16]} Bf6 {[%emt 0:00:36] The position is equal.} 13. f4 {[%emt 0:09:18]} (13. Nd3 $11) 13... d6 {[%emt 0:01:25] [#] And now ...Ba6 would win.} 14. Nc4 {[%emt 0:00:02]} (14. Nxc6 $2 {too greedy.} Qc7 15. Bxf6 Rxf6 16. Nxa7 (16. Qf3 $2 Bb7 $19) 16... Qxa7 $19 (16... Rxa7 $2 17. Qe2 $19)) 14... Bxb2 {[%emt 0:02:11]} ({Better is} 14... Ba6 $15 15. d3 Bxb2 16. Nxb2 Qf6) 15. Nxb2 $11 {[%emt 0:00:01]} Qf6 {[%emt 0:00:13]} 16. c3 {[%emt 0:07:19]} Ba6 {[%emt 0:00:59] Prevents Qe2} 17. Rf3 {[%emt 0:00:08]} e5 {[%emt 0:04:29]} 18. fxe5 {[%emt 0:02:45]} Qxe5 {[%emt 0:00:06] [#] ...Be2 is the strong threat.} 19. Qe1 {[%emt 0:03:14]} Qd5 {[%emt 0:08:27]} 20. Rxf8+ {[%emt 0:00:22]} Rxf8 {[%emt 0:00:04]} 21. Qe3 {[%emt 0:02:04]} Qf7 {[%emt 0:00:04][%cal Of7f1] ( -> ...Qf1+!)} 22. d3 {[%emt 0:02:34]} Qf6 {[%emt 0:00:27]} 23. Qd2 {[%emt 0:01:46]} h5 {[%emt 0:01:00]} 24. Re1 {[%emt 0:03:27]} h4 {[%emt 0:00:48]} 25. h3 {[%emt 0:01:57]} Bc8 {[%emt 0:11:17]} 26. Nd1 {[%emt 0:06:09][%cal Bb2d1,Bd1f2,Bf2d3,Bd3c5][%mdl 32]} d5 {[%emt 0:05:54]} 27. Nf2 {[%emt 0:01:24]} Bf5 {[%emt 0:06:39]} 28. d4 {[%emt 0:01:28]} cxd4 {[%emt 0:01:10]} 29. cxd4 {[%emt 0:00:32]} Bd7 {[%emt 0:03:21]} 30. Re5 {[%emt 0:02:17]} a5 {[%emt 0:00:41]} 31. Qe3 {[%emt 0:02:22]} Rf7 {[%emt 0:02:29]} 32. Nd3 {[%emt 0:03:47]} Rf8 {[%emt 0:07:53]} 33. Nc5 {[%emt 0:02:01] Weighted Error Value: White=0.04 (flawless) /Black=0.06 (flawless) .  Mistake:       	White=1     	Black=1      Inaccurate:     	White=1     	---        OK:         	White=9     	Black=10     Best:        	White=1     	Black=1} 1/2-1/2

[Event "45th FIDE Olympiad 2024"]
[Site "Budapest"]
[Date "2024.09.14"]
[Round "4.54"]
[White "Andrade, Ivan"]
[Black "Young, Christopher"]
[Result "1-0"]
[ECO "B42"]
[WhiteElo "2132"]
[BlackElo "1758"]
[PlyCount "139"]
[EventDate "2024.09.05"]
[EventType "team-tourn"]
[EventCountry "HUN"]
[WhiteTeam "Mozambique"]
[BlackTeam "Cayman Islands"]
[WhiteTeamCountry "MOZ"]
[BlackTeamCountry "CAY"]
[TimeControl "40/5400+30:1800+30"]

1. e4 c5 2. Nf3 e6 3. d4 cxd4 4. Nxd4 a6 5. c4 Qc7 6. Be3 Nf6 7. Bd3 Nc6 8. Nxc6 bxc6 9. Nc3 Be7 10. Rc1 O-O 11. O-O d6 12. f4 Rd8 13. Qe2 Bb7 14. c5 d5 15. e5 Nd7 16. Na4 Qa5 17. Qc2 g6 18. Rf3 Qc7 19. g4 a5 20. Qe2 Qc8 21. Bb1 Ba6 22. Qf2 Bb5 23. Nc3 Qa6 24. Nxb5 Qxb5 25. Bd4 f5 26. Rb3 Qa6 27. Bd3 Qc8 28. Be2 Rb8 29. Rh3 Nf8 30. a3 Rd7 31. Kh1 Rdb7 32. Ba6 fxg4 33. Bxb7 Qxb7 34. Re3 Qb5 35. Qc2 a4 36. Qg2 h5 37. h3 gxh3 38. Rxh3 Kf7 39. Qc2 Rb7 40. Rf3 Ke8 41. Kg2 Qa5 42. Rb1 Rb3 43. Rxb3 axb3 44. Qc3 Qb5 45. Kf3 g5 46. fxg5 Bxg5 47. Rg1 Be7 48. Ke3 Nd7 49. Qb4 Nxc5 50. Qxb5 cxb5 51. Rg8+ Kd7 52. Rb8 h4 53. Kf3 Ne4 54. Rb7+ Ke8 55. Rxb5 h3 56. Rb8+ Kf7 57. Kg4 Ng5 58. Kg3 Kg6 59. Rxb3 Kf5 60. Re3 Bd8 61. b4 Bc7 62. b5 Ne4+ 63. Kxh3 Bxe5 64. Bxe5 Kxe5 65. Rxe4+ Kxe4 66. b6 d4 67. b7 d3 68. b8=Q Ke3 69. Qe5+ Kf2 70. Qxe6 1-0

[Event "45th FIDE Olympiad 2024"]
[Site "Budapest"]
[Date "2024.09.14"]
[Round "4.55"]
[White "Warmerdam, Max"]
[Black "Risteski, Emil"]
[Result "1-0"]
[ECO "D37"]
[WhiteElo "2679"]
[BlackElo "2367"]
[Annotator "TA"]
[PlyCount "85"]
[EventDate "2024.09.05"]
[EventType "team-tourn"]
[EventCountry "HUN"]
[SourceTitle "playchess.com"]
[Source "ChessBase"]
[SourceQuality "1"]
[WhiteTeam "Netherlands"]
[BlackTeam "North Macedonia"]
[WhiteTeamCountry "NED"]
[TimeControl "40/5400+30:1800+30"]

{[%evp 27,85,-105,-50,-45,-40,-49,-39,-47,8,9,14,13,40,37,47,-213,-12,-28,38,0,62,68,43,0,0,0,0,0,46,48,93,54,282,258,374,133,144,47,50,52,43,51,51,41,42,46,146,122,135,117,117,106,163,187,409,422,447,426,452,460]} 1. Nf3 {[%emt 0:00:13]} d5 {[%emt 0:02:02]} 2. c4 {[%emt 0:00:18]} e6 {[%emt 0:00:15]} 3. d4 {[%emt 0:00:06]} Nf6 {[%emt 0:00:12]} 4. Nc3 {[%emt 0:00:07]} h6 {[%emt 0:00:06]} 5. g3 {[%emt 0:01:51]} Nc6 {[%emt 0:00:33]} 6. Bg2 {[%emt 0:07:22] D37: Queen's Gambit Declined: 5 Bf4.} Bd6 {[%emt 0:00:22]} 7. c5 {[%emt 0:07:20]} Be7 {[%emt 0:00:16]} 8. a3 {[%emt 0:00:12]} Ne4 $146 {[%emt 0:14:04]} ({Predecessor:} 8... O-O 9. O-O a5 10. Bf4 Ne4 11. Nb5 e5 12. Nxe5 g5 13. Be3 Nxe5 14. dxe5 Nxc5 {1-0 Erigaisi,A (2701)-Boyer,M (2453) PRO League Prelim rapid 2023 (1.2)}) 9. Qc2 {[%emt 0:07:57]} f5 {[%emt 0:06:05]} 10. Bf4 {[%emt 0:01:55]} g5 {[%emt 0:01:13]} 11. Be3 {[%emt 0:00:53]} Bf6 {[%emt 0:05:27]} 12. Rd1 {[%emt 0:01:21]} Qe7 {[%emt 0:09:23]} 13. b4 {[%emt 0:06:29]} a6 {[%emt 0:00:21]} 14. Nd2 {[%emt 0:33:43]} (14. h4 $15) 14... Nxd2 {[%emt 0:20:37]} ({Black should try} 14... Nxc3 $17 15. Qxc3 f4 16. gxf4 gxf4 17. Bxf4 Nxd4) 15. Qxd2 $15 {[%emt 0:00:53]} Qg7 {[%emt 0:00:06]} 16. f3 {[%emt 0:02:36]} Bd7 {[%emt 0:06:40]} 17. Bf2 {[%emt 0:00:34]} Rd8 {[%emt 0:00:05]} ({Black should play} 17... O-O-O $15) 18. e3 $11 {[%emt 0:06:13]} Bc8 {[%emt 0:00:52]} 19. f4 {[%emt 0:00:52]} h5 {[%emt 0:03:44]} 20. fxg5 {[%emt 0:04:42]} Bxg5 {[%emt 0:00:08]} 21. Bf3 $2 {[%emt 0:00:16][%mdl 8192]} (21. h4 $14 {stays ahead.} Bh6 22. O-O) 21... h4 $2 {[%emt 0:02:06]} (21... Nxd4 $1 $19 22. Bg2 (22. Qxd4 $2 Bf6 $19) 22... Nc6) 22. Qe2 {[%emt 0:02:59]} (22. Qd3 $5) 22... h3 {[%emt 0:02:03]} (22... hxg3 $11 23. Bxg3 f4 24. exf4 Nxd4 25. Bh5+ Ke7) 23. g4 {[%emt 0:00:52]} O-O {[%emt 0:01:11]} ({Better is} 23... fxg4 $11 24. Bxg4 Ke7) 24. gxf5 $1 $14 {[%emt 0:05:40]} Rxf5 {[%emt 0:00:10]} 25. Bg4 {[%emt 0:00:05]} Rf6 {[%emt 0:07:52]} 26. Rg1 {[%emt 0:00:05]} (26. Bxh3 Rdf8 27. Rg1 (27. Bg3 $2 Rf3 $19) 27... Qh6 $17 (27... Rxf2 28. Qh5 $11)) 26... Rdf8 {[%emt 0:01:21]} 27. Bg3 {[%emt 0:00:37]} Kh8 {[%emt 0:01:57]} (27... Bxe3 $2 28. Qxe3 Rg6 (28... Qxg4 $2 29. Bxc7 $18) 29. Bh5 $18 (29. Bxh3 e5 $18)) (27... Qh6 $1 $11 {should be considered.} 28. Rd3 (28. Bxc7 $2 Rf2 $19) 28... Rg6) 28. Rd3 $1 $14 {[%emt 0:01:16]} (28. Bxh3 $2 Qh6 29. Bg2 Bxe3 $19) 28... Qh7 {[%emt 0:01:59]} 29. Kd1 {[%emt 0:02:34]} Bh4 $2 {[%emt 0:06:23] [#]} (29... Rg6 $14) 30. e4 $1 $18 {[%emt 0:01:13]} (30. Bxh3 $2 Bxg3 31. Rxg3 Rf2 $19) 30... Bxg3 {[%emt 0:03:05]} (30... Bg5 $142 31. exd5 exd5 32. Bxc8 Rxc8) 31. Rgxg3 $2 {[%emt 0:00:38]} (31. Rdxg3 $18 Rf2 (31... Nxd4 $2 32. Qe3 $18) 32. Qe3 Rxh2 33. Qg5 (33. Bxh3 Qh4 $18) (33. exd5 exd5 34. Bf3 Be6 $18) (33. Rxh3 Rxh3 34. Bxh3 Ne5 $18) 33... dxe4 (33... Nxd4 $2 34. Bxe6 Nxe6 35. Qe5+ $18) 34. Nxe4) 31... Rf1+ $16 {[%emt 0:01:40] [#]} 32. Kc2 {[%emt 0:01:14]} (32. Kd2 $1 $16 {[%cal Og4f5] Bf5! would now be deadly.} Qh6+ 33. Qe3 R1f2+ 34. Kc1 Qxe3+ 35. Rdxe3) 32... R1f2 $14 {[%emt 0:01:30]} 33. Rxh3 $1 {[%emt 0:00:05]} dxe4 $1 {[%emt 0:00:07]} (33... Rxe2+ 34. Nxe2 dxe4 (34... Nxd4+ $2 35. Nxd4 dxe4 36. Rxh7+ $18) 35. Rxh7+ Kxh7 36. Re3 $16) 34. Rxh7+ {[%emt 0:00:51]} Kxh7 {[%emt 0:00:03]} 35. Nxe4 {[%emt 0:00:33]} (35. Rh3+ Kg7 36. Kc1 Rxe2 37. Nxe2 Rf2 $11) 35... Rxe2+ {[%emt 0:00:03]} 36. Bxe2 {[%emt 0:00:02]} e5 {[%emt 0:00:27]} (36... Rf4 $14 37. Rh3+ Kg7 38. Rg3+ Kf8) 37. dxe5 {[%emt 0:01:44]} Nxe5 {[%emt 0:02:06]} 38. Re3 {[%emt 0:00:12]} Kg6 {[%emt 0:00:23]} 39. Ng3 {[%emt 0:01:07]} Ng4 {[%emt 0:00:55]} (39... Nc6 $16) 40. Re7 $18 {[%emt 0:00:46]} Nxh2 $2 {[%emt 0:01:12]} (40... Rf7 41. Re8 Bf5+ 42. Kc3 Nf6) 41. Rxc7 $18 {[%emt 0:02:34]} Kg5 {[%emt 0:00:07]} 42. Ne4+ {[%emt 0:01:14]} Kf4 {[%emt 0:00:06]} 43. Nd6 {[%emt 0:00:38]} 1-0